bitfinex-derivatives/quotes_SOLF0:USTF0_20241015
["timestamp","ask_amount","ask_price","bid_price","bid_amount"]
[1728979268642,3.947,155.29,155.2,9.91]
[1728979268643,9.91,155.24,155.2,9.91]
[1728979268946,9.91,155.24,155.21,3.2228]
[1728979269649,9.91,155.24,155.2,13.133]
[1728979270445,9.91,155.24,155.21,3.2228]
[1728979272946,9.91,155.22,155.2,4.58]
[1728979273746,9.91,155.23,155.2,7.803]
[1728979274251,13.1325,155.23,155.2,4.58]
[1728979277759,3.2222,155.25,155.2,4.58]
[1728979277963,13.1322,155.25,155.2,7.8029]
[1728979278559,3.2223,155.24,155.2,7.8029]
[1728979278856,3.2223,155.24,155.2,17.7129]
[1728979279957,13.1323,155.24,155.2,17.7129]
[1728979283872,3.222,155.26,155.21,9.91]
[1728979284074,3.222,155.26,155.22,9.91]
[1728979284772,3.222,155.26,155.22,13.1325]
[1728979285765,9.91,155.27,155.22,9.91]
[1728979285970,13.1317,155.27,155.23,3.2223]
[1728979286173,1.3973,155.32,155.24,9.91]
[1728979286375,1.3973,155.32,155.25,3.2219]
[1728979286376,13.1312,155.3,155.25,3.2219]
[1728979287078,9.91,155.3,155.25,3.2219]
[1728979287275,13.1311,155.3,155.26,3.2216]
[1728979288276,3.2212,155.29,155.26,3.2216]
[1728979288478,9.91,155.3,155.26,3.2216]
[1728979288876,13.1312,155.3,155.26,3.2216]
[1728979289474,3.2212,155.29,155.26,3.2216]
[1728979291581,9.91,155.3,155.25,9.91]
[1728979291782,13.1312,155.3,155.26,3.2217]
[1728979292087,9.91,155.3,155.26,3.2217]
[1728979292381,4.56,155.32,155.26,3.2217]
[1728979292583,9.91,155.3,155.26,3.2217]
[1728979293180,3.2212,155.29,155.26,3.2217]
[1728979293477,9.91,155.27,155.25,3.222]
[1728979293873,9.91,155.27,155.24,7.7821]
[1728979295385,13.1316,155.27,155.24,7.7821]
[1728979296983,13.1316,155.27,155.24,4.56]
[1728979298383,9.91,155.27,155.24,4.56]
[1728979298788,3.2215,155.28,155.24,4.56]
[1728979299790,9.91,155.29,155.24,4.56]
[1728979299986,3.2215,155.28,155.24,4.56]
[1728979306795,3.2215,155.28,155.24,14.47]
[1728979307398,9.91,155.3,155.24,14.47]
[1728979307602,9.91,155.31,155.26,9.91]
[1728979307998,3.2211,155.3,155.26,13.1318]
[1728979308199,9.91,155.33,155.27,9.91]
[1728979308501,3.2209,155.31,155.27,13.1315]
[1728979310794,13.131,155.31,155.27,13.1315]
[1728979314001,9.91,155.3,155.27,3.2215]
[1728979317106,13.131,155.31,155.27,13.1315]
[1728979318703,13.131,155.31,155.27,17.6915]
[1728979319709,3.221,155.31,155.28,13.1314]
[1728979323522,2.7563,155.34,155.28,13.1314]
[1728979323823,3.2204,155.33,155.3,3.2209]
[1728979325617,3.2202,155.34,155.31,3.2206]
[1728979325812,3.2202,155.34,155.3,9.91]
[1728979326320,9.91,155.36,155.3,9.91]
[1728979326717,9.91,155.36,155.31,4.56]
[1728979327021,3.2201,155.35,155.32,3.2204]
[1728979327226,3.2201,155.35,155.31,4.56]
[1728979327414,3.2201,155.35,155.33,3.2203]
[1728979327615,9.91,155.36,155.31,4.56]
[1728979327813,3.2198,155.36,155.32,9.91]
[1728979328014,3.2198,155.36,155.33,3.2203]
[1728979329023,13.1296,155.37,155.34,3.22]
[1728979329224,3.2196,155.37,155.34,3.22]
[1728979331230,3.2197,155.36,155.34,3.22]
[1728979332427,13.1296,155.37,155.34,3.22]
[1728979332724,9.91,155.38,155.35,3.2199]
[1728979333227,1.3943,155.4,155.35,3.2199]
[1728979333422,9.91,155.38,155.35,3.2199]
[1728979333623,13.1294,155.38,155.35,3.2199]
[1728979338837,3.2194,155.38,155.35,3.2199]
[1728979341632,3.2194,155.38,155.31,7.83196809]
[1728979341832,9.91,155.37,155.32,4.56]
[1728979342032,9.91,155.37,155.32,14.47]
[1728979342428,13.1296,155.37,155.33,3.2202]
[1728979343631,9.91,155.37,155.34,9.91]
[1728979347237,13.1294,155.38,155.34,9.91]
[1728979351235,3.2193,155.39,155.36,9.91]
[1728979352035,3.2193,155.39,155.35,3.2198]
[1728979352339,3.2193,155.39,155.35,13.1298]
[1728979353737,3.2193,155.38,155.35,13.1298]
[1728979356839,3.2194,155.38,155.34,3.22]
[1728979357042,3.2194,155.38,155.34,9.91]
[1728979357736,3.2194,155.38,155.35,3.2198]
[1728979358344,3.2194,155.38,155.35,13.1298]
[1728979360646,3.2194,155.38,155.35,13.1299]
[1728979361050,3.2194,155.38,155.35,9.91]
[1728979361445,1.3817,155.42,155.35,13.1299]
[1728979361639,3.2192,155.39,155.35,13.1299]
[1728979363148,3.2192,155.39,155.36,9.91]
[1728979364555,3.2192,155.39,155.36,13.1297]
[1728979365252,3.2192,155.39,155.36,3.2197]
[1728979366242,3.2192,155.39,155.36,13.1297]
[1728979367859,3.2189,155.4,155.37,3.2194]
[1728979368556,3.2189,155.4,155.38,3.2193]
[1728979368950,3.2189,155.4,155.36,9.91]
[1728979369344,3.2189,155.4,155.37,3.2194]
[1728979371558,229.0,155.49,155.37,9.91]
[1728979371755,74.85999362,155.57,155.39,3.219]
[1728979371756,3.2186,155.42,155.39,3.219]
[1728979375155,9.91,155.43,155.37,4.54]
[1728979375360,3.2188,155.41,155.38,3.2193]
[1728979376062,3.2181,155.44,155.41,3.2186]
[1728979376260,4.1375,155.5,155.41,9.91]
[1728979376454,0.9792188,155.49,155.41,14.45]
[1728979376653,9.91,155.5,155.46,3.2175]
[1728979376853,0.97917695,155.49,155.46,3.2175]
[1728979377055,9.91,155.47,155.42,13.8862]
[1728979377254,9.91,155.47,155.43,7.7583]
[1728979377255,3.2178,155.46,155.43,7.7583]
[1728979377560,9.91,155.47,155.43,4.54]
[1728979377756,0.12502,155.51,155.44,9.91]
[1728979377958,14.10584179,155.5,155.46,3.2175]
[1728979378152,0.97894179,155.49,155.46,3.2175]
[1728979378353,13.1269,155.5,155.45,9.91]
[1728979378558,3.2169,155.5,155.47,3.2174]
[1728979378751,13.1269,155.5,155.47,3.2174]
[1728979379152,0.12502,155.51,155.45,9.91]
[1728979379357,0.12502,155.51,155.49,3.217]
[1728979380048,3.34172,155.51,155.48,3.2172]
[1728979382062,3.34172,155.51,155.48,13.1272]
[1728979383458,0.12502,155.51,155.48,13.1272]
[1728979384766,0.12502,155.51,155.48,9.91]
[1728979386466,3.2168,155.5,155.48,9.91]
[1728979388566,0.12502,155.51,155.42,3.9762]
[1728979388766,9.91,155.5,155.45,9.91]
[1728979389366,3.2174,155.48,155.45,9.91]
[1728979389968,3.2175,155.47,155.45,14.45]
[1728979391374,9.91,155.47,155.42,3.9762]
[1728979391675,3.218,155.45,155.43,9.91]
[1728979392970,3.2181,155.44,155.43,9.91]
[1728979393170,9.91,155.47,155.43,9.91]
[1728979393671,3.2181,155.44,155.43,9.91]
[1728979393971,9.91,155.46,155.41,14.45]
[1728979394170,3.2184,155.43,155.41,14.45]
[1728979394365,9.91,155.46,155.41,14.45]
[1728979395366,3.2182,155.44,155.41,14.45]
[1728979396173,9.91,155.46,155.41,14.45]
[1728979397073,3.2184,155.43,155.41,4.54]
[1728979397266,9.91,155.46,155.41,14.45]
[1728979397879,3.2182,155.44,155.41,14.45]
[1728979400181,3.2182,155.44,155.43,9.91]
[1728979401878,9.91,155.46,155.38,3.9009]
[1728979402177,3.2184,155.43,155.41,9.91]
[1728979403565,3.2183,155.43,155.41,9.91]
[1728979403973,9.91,155.45,155.41,9.91]
[1728979404176,9.91,155.45,155.4,9.91]
[1728979404679,3.2184,155.43,155.4,9.91]
[1728979406073,75.31325009,155.49,155.39,4.54]
[1728979406275,9.91,155.47,155.42,9.91]
[1728979406778,3.2179,155.45,155.42,9.91]
[1728979407472,3.2181,155.44,155.42,9.91]
[1728979409285,9.91,155.45,155.4,9.91]
[1728979409478,3.2184,155.43,155.4,9.91]
[1728979409881,3.2184,155.43,155.4,13.1289]
[1728979412088,3.2181,155.44,155.4,13.1289]
[1728979415396,3.2181,155.44,155.4,9.91]
[1728979415694,3.2181,155.44,155.42,9.91]
[1728979418599,3.2181,155.44,155.41,3.2187]
[1728979419193,3.2184,155.43,155.4,3.2189]
[1728979424304,3.2185,155.42,155.39,14.43]
[1728979424597,9.91,155.42,155.33,1.3454]
[1728979424802,3.2188,155.41,155.37,17.6494]
[1728979428704,1.3517,155.46,155.37,14.43]
[1728979428903,9.91,155.43,155.38,9.91]
[1728979429408,13.1284,155.43,155.39,3.219]
[1728979429700,9.91,155.43,155.39,3.219]
[1728979430204,13.1281,155.44,155.39,13.129]
[1728979430405,9.91,155.44,155.39,13.129]
[1728979430607,4.52,155.47,155.4,9.91]
[1728979430908,3.2182,155.44,155.4,9.91]
[1728979431208,3.2182,155.44,155.41,3.2186]
[1728979431706,3.2183,155.43,155.41,3.2186]
[1728979432710,3.2183,155.43,155.4,13.1288]
[1728979436106,3.2183,155.43,155.4,3.2188]
[1728979436308,3.2186,155.42,155.39,9.91]
[1728979436612,4.54,155.47,155.38,4.52]
[1728979436613,9.91,155.4,155.38,4.52]
[1728979436814,3.2191,155.39,155.38,4.52]
[1728979437707,9.91,155.4,155.38,4.52]
[1728979438814,13.129,155.4,155.38,4.52]
[1728979442310,13.129,155.4,155.36,3.2197]
[1728979442514,9.91,155.39,155.36,3.2197]
[1728979442911,13.1292,155.39,155.35,3.2198]
[1728979443118,13.1292,155.39,155.35,7.7598]
[1728979443321,13.1292,155.39,155.35,17.6698]
[1728979443619,4.54,155.43,155.37,3.2195]
[1728979443918,9.91,155.4,155.37,3.2195]
[1728979444117,13.1289,155.4,155.36,13.1297]
[1728979445523,9.91,155.39,155.35,4.54]
[1728979445724,13.1292,155.39,155.35,7.7598]
[1728979447323,3.2192,155.39,155.35,4.54]
[1728979447520,3.2192,155.39,155.36,3.2197]
[1728979449819,3.2192,155.39,155.35,4.54]
[1728979449820,4.54,155.43,155.37,9.91]
[1728979450021,1.3181,155.45,155.39,3.2189]
[1728979450319,3.2184,155.43,155.39,3.2189]
[1728979450527,9.91,155.42,155.39,3.2189]
[1728979453222,9.91,155.41,155.35,4.54]
[1728979453430,9.91,155.41,155.36,9.91]
[1728979453821,13.129,155.4,155.36,3.2197]
[1728979454926,9.91,155.4,155.35,9.91]
[1728979455133,13.1294,155.38,155.34,3.22]
[1728979455725,3.2194,155.38,155.34,13.13]
[1728979456437,9.91,155.39,155.33,2.7968]
[1728979456638,9.91,155.36,155.32,5.9432]
[1728979456941,9.91,155.36,155.32,1.4032]
[1728979457327,13.1298,155.36,155.32,4.6236]
[1728979458033,9.91,155.36,155.33,3.2203]
[1728979459433,13.1298,155.36,155.32,4.6237]
[1728979459729,13.1298,155.36,155.32,14.5337]
[1728979460131,13.1298,155.36,155.32,4.6237]
[1728979460537,13.1298,155.36,155.32,1.4032]
[1728979460739,13.1298,155.36,155.33,3.2204]
[1728979461534,3.2192,155.39,155.35,13.1298]
[1728979461738,9.91,155.4,155.35,9.91]
[1728979462233,13.1291,155.4,155.36,3.2197]
[1728979462632,9.91,155.4,155.36,3.2197]
[1728979463438,3.2191,155.39,155.36,3.2197]
[1728979465645,3.2192,155.39,155.35,3.2198]
[1728979465942,3.2192,155.39,155.35,13.1298]
[1728979467538,4.54,155.42,155.35,9.91]
[1728979467749,3.219,155.4,155.36,9.91]
[1728979468339,3.219,155.4,155.37,3.2195]
[1728979472447,3.219,155.4,155.36,9.91]
[1728979472640,3.2188,155.41,155.38,3.2192]
[1728979473746,3.2187,155.41,155.39,3.2191]
[1728979474547,14.45,155.43,155.39,3.2191]
[1728979474748,3.2186,155.42,155.39,3.2191]
[1728979475849,3.2187,155.41,155.39,3.2191]
[1728979476850,3.2185,155.42,155.4,3.2189]
[1728979477456,3.2186,155.42,155.4,3.2189]
[1728979477648,9.91,155.43,155.41,3.2186]
[1728979478849,13.1284,155.43,155.41,3.2186]
[1728979480344,13.1284,155.43,155.4,3.2188]
[1728979482250,9.91,155.43,155.4,3.2188]
[1728979482445,3.2185,155.42,155.4,3.2188]
[1728979488054,3.2185,155.42,155.39,13.129]
[1728979490763,9.91,155.43,155.39,9.91]
[1728979490963,9.91,155.4,155.36,9.91]
[1728979491653,13.129,155.4,155.36,13.1295]
[1728979495057,13.129,155.4,155.37,3.2195]
[1728979495260,13.129,155.4,155.36,9.91]
[1728979495763,13.129,155.4,155.36,13.1296]
[1728979495964,9.91,155.4,155.36,13.1296]
[1728979496261,3.2192,155.39,155.36,13.1296]
[1728979496664,13.129,155.4,155.36,13.1296]
[1728979497159,4.52,155.44,155.35,4.52]
[1728979497160,9.91,155.39,155.35,4.52]
[1728979497365,3.2194,155.38,155.35,4.52]
[1728979498260,3.2194,155.38,155.35,7.7399]
[1728979498762,9.91,155.38,155.33,13.1302]
[1728979498963,9.91,155.38,155.33,9.91]
[1728979499658,3.2198,155.36,155.33,9.91]
[1728979500160,9.91,155.38,155.29,4.071]
[1728979500365,9.91,155.35,155.3,14.43]
[1728979501152,3.2203,155.34,155.3,14.43]
[1728979501358,3.2203,155.34,155.3,17.6509]
[1728979504362,3.2203,155.34,155.3,7.7409]
[1728979504566,3.2203,155.34,155.31,9.91]
[1728979505662,3.2205,155.33,155.29,7.292]
[1728979505863,9.91,155.33,155.28,9.91]
[1728979506069,9.91,155.32,155.28,9.91]
[1728979506566,13.1307,155.32,155.27,7.7414]
[1728979506759,9.91,155.31,155.25,1.2946]
[1728979506959,9.91,155.31,155.25,15.7246]
[1728979508470,3.2211,155.3,155.26,3.2218]
[1728979512870,13.1311,155.3,155.26,3.2218]
[1728979514869,9.91,155.3,155.25,11.2046]
[1728979515071,9.91,155.3,155.27,3.2216]
[1728979515572,13.1309,155.31,155.27,13.1316]
[1728979515774,7.7206,155.32,155.28,13.1313]
[1728979519873,1.3658,155.4,155.3,9.91]
[1728979520075,4.5,155.34,155.31,3.2206]
[1728979521077,7.7201,155.34,155.31,3.2206]
[1728979521770,9.91,155.33,155.31,3.2206]
[1728979522077,9.91,155.33,155.3,3.2208]
[1728979522078,9.91,155.32,155.3,3.2208]
[1728979523269,9.91,155.33,155.31,3.2206]
[1728979523872,83.05778113,155.37,155.33,3.2202]
[1728979524078,92.96778113,155.37,155.33,3.2202]
[1728979524380,3.2197,155.36,155.33,3.2202]
[1728979525681,89.74818113,155.37,155.34,3.22]
[1728979526078,79.83818113,155.37,155.34,3.22]
[1728979526680,83.05768113,155.37,155.34,3.22]
[1728979528077,3.2198,155.36,155.33,13.1302]
[1728979528276,3.2198,155.36,155.33,3.2202]
[1728979528682,9.91,155.35,155.3,1.3566]
[1728979530387,13.13,155.35,155.31,3.2207]
[1728979531685,13.13,155.35,155.31,13.1307]
[1728979532487,3.22,155.35,155.31,13.1307]
[1728979535383,3.22,155.35,155.32,9.91]
[1728979535789,3.22,155.35,155.32,13.1305]
[1728979540487,9.91,155.36,155.32,13.1305]
[1728979540692,13.1298,155.36,155.32,13.1305]
[1728979541591,3.2198,155.36,155.33,3.2203]
[1728979541780,13.1298,155.36,155.33,3.2203]
[1728979544185,14.39,155.39,155.34,9.91]
[1728979544889,3.2195,155.38,155.35,3.2199]
[1728979547288,9.91,155.37,155.35,3.2199]
[1728979548694,3.2195,155.38,155.35,3.2199]
[1728979548994,3.2192,155.39,155.36,3.2196]
[1728979549292,3.2192,155.39,155.35,9.91]
[1728979549490,3.2192,155.39,155.37,3.2195]
[1728979549686,3.2188,155.41,155.36,9.91]
[1728979550083,14.39,155.42,155.38,3.2192]
[1728979550487,3.2191,155.4,155.38,3.2192]
[1728979550994,4.48,155.42,155.36,9.91]
[1728979551190,13.1289,155.41,155.38,3.2192]
[1728979551584,9.91,155.41,155.38,3.2192]
[1728979551784,3.219,155.4,155.38,3.2192]
[1728979554096,3.219,155.4,155.37,3.2194]
[1728979556599,3.2191,155.39,155.37,3.2194]
[1728979561199,9.91,155.39,155.31,3.14709755]
[1728979561402,3.2196,155.37,155.34,3.22]
[1728979570405,3.2196,155.37,155.34,13.13]
[1728979575510,9.91,155.39,155.32,4.48]
[1728979575710,4.46,155.4,155.35,9.91]
[1728979577007,7.6791,155.4,155.37,3.2195]
[1728979577310,9.91,155.39,155.32,4.48]
[1728979577512,9.91,155.38,155.34,3.22]
[1728979578311,3.2196,155.37,155.34,3.22]
[1728979580721,9.91,155.38,155.32,4.48]
[1728979580910,3.2198,155.36,155.33,3.2202]
[1728979581919,3.2196,155.37,155.33,3.2202]
[1728979584526,9.91,155.38,155.3,1.3566]
[1728979584732,9.91,155.34,155.3,1.3566]
[1728979584921,9.91,155.34,155.29,2.6613]
[1728979585117,3.2205,155.33,155.29,5.8824]
[1728979585425,9.91,155.34,155.29,12.5713]
[1728979586032,3.2205,155.33,155.29,15.7923]
[1728979592131,3.2205,155.33,155.27,7.74270341]
[1728979592132,13.1307,155.32,155.28,3.2214]
[1728979595538,3.2204,155.33,155.3,3.221]
[1728979595837,3.2204,155.33,155.28,9.91]
[1728979596334,3.2206,155.32,155.29,3.2211]
[1728979597539,3.2203,155.34,155.3,13.1309]
[1728979598128,9.91,155.36,155.31,9.91]
[1728979598327,3.22,155.35,155.32,3.2205]
[1728979598535,75.36920525,155.37,155.32,9.91]
[1728979598934,75.36920525,155.37,155.34,13.13]
[1728979600532,3.2195,155.37,155.34,13.13]
[1728979600928,4.46,155.38,155.34,9.91]
[1728979601340,3.2193,155.39,155.34,9.91]
[1728979601838,3.2193,155.39,155.35,9.91]
[1728979602040,2.7168,155.44,155.37,9.91]
[1728979602338,9.91,155.42,155.37,9.91]
[1728979602533,3.2188,155.41,155.38,3.2192]
[1728979604341,3.2189,155.4,155.37,3.2195]
[1728979604735,13.1289,155.4,155.37,3.2195]
[1728979605242,9.91,155.4,155.37,3.2195]
[1728979605644,13.1288,155.41,155.37,3.2195]
[1728979606542,13.1288,155.41,155.38,3.2193]
[1728979607938,3.2188,155.41,155.38,3.2193]
[1728979612145,3.05384359,155.41,155.38,3.2193]
[1728979614546,0.12502,155.51,155.39,9.91]
[1728979614750,9.91,155.45,155.39,9.91]
[1728979614951,9.91,155.44,155.39,9.91]
[1728979615251,3.2184,155.43,155.4,3.2188]
[1728979618258,9.91,155.44,155.39,9.91]
[1728979618959,3.2184,155.43,155.4,3.2189]
[1728979621969,13.1285,155.42,155.39,3.219]
[1728979622169,9.91,155.42,155.38,9.91]
[1728979622373,9.91,155.42,155.39,3.219]
[1728979626874,3.2181,155.44,155.41,3.2186]
[1728979627076,13.1281,155.44,155.39,9.91]
[1728979627278,9.91,155.44,155.39,9.91]
[1728979627577,9.91,155.44,155.41,3.2187]
[1728979627578,3.2182,155.44,155.41,3.2187]
[1728979627778,14.37,155.45,155.4,9.91]
[1728979627970,17.588,155.45,155.4,9.91]
[1728979628271,14.37,155.45,155.4,9.91]
[1728979628974,9.91,155.43,155.33,3.16179647]
[1728979629281,9.91,155.39,155.35,9.91]
[1728979629485,3.2197,155.37,155.33,3.2203]
[1728979629682,13.1297,155.37,155.34,4.46]
[1728979630073,13.1297,155.37,155.34,7.6801]
[1728979631377,13.1297,155.37,155.34,3.2201]
[1728979632579,9.91,155.37,155.15,19.34]
[1728979632774,9.91,155.33,155.29,3.221]
[1728979633682,13.1304,155.33,155.29,3.221]
[1728979635182,9.91,155.33,155.28,9.91]
[1728979635383,9.91,155.31,155.27,7.7014]
[1728979635885,13.1309,155.31,155.27,7.7014]
[1728979636485,13.1309,155.31,155.28,3.2214]
[1728979637391,13.1309,155.31,155.27,7.7016]
[1728979639489,3.2209,155.31,155.27,17.6116]
[1728979641088,3.2209,155.31,155.28,3.2214]
[1728979643386,9.91,155.32,155.27,14.39]
[1728979643586,9.91,155.32,155.29,3.2211]
[1728979644292,13.1306,155.32,155.29,3.2211]
[1728979646387,9.91,155.32,155.29,3.2211]
[1728979646786,9.91,155.32,155.27,14.39]
[1728979646984,13.1306,155.32,155.28,3.2213]
[1728979648598,9.91,155.32,155.27,14.39]
[1728979648791,13.1303,155.34,155.3,3.2208]
[1728979649497,13.1304,155.33,155.3,3.2208]
[1728979652699,9.91,155.34,155.29,9.91]
[1728979652897,9.91,155.35,155.3,9.91]
[1728979653201,13.1301,155.35,155.3,9.91]
[1728979653500,13.1301,155.35,155.31,3.2206]
[1728979654603,9.91,155.35,155.33,3.2203]
[1728979656895,7.6994,155.38,155.34,3.22]
[1728979657097,9.91,155.37,155.34,3.22]
[1728979658398,13.1295,155.37,155.34,3.22]
[1728979660801,9.91,155.37,155.31,4.48]
[1728979661009,3.2197,155.36,155.33,3.2203]
[1728979662403,9.91,155.34,155.3,9.91]
[1728979662604,9.91,155.34,155.26,4.1023]
[1728979662605,9.91,155.33,155.28,9.91]
[1728979662907,9.91,155.32,155.29,3.221]
[1728979664596,9.91,155.32,155.28,14.37]
[1728979664803,9.91,155.33,155.3,3.2208]
[1728979665011,9.91,155.34,155.3,9.91]
[1728979665307,4.46,155.35,155.31,9.91]
[1728979665502,4.46,155.38,155.32,9.91]
[1728979665803,14.37,155.38,155.32,9.91]
[1728979666102,17.5895,155.38,155.34,3.22]
[1728979666903,3.2196,155.37,155.34,3.22]
[1728979667103,9.91,155.36,155.34,3.22]
[1728979667910,13.1296,155.37,155.34,3.22]
[1728979668897,9.91,155.37,155.32,9.91]
[1728979669101,9.91,155.38,155.33,9.91]
[1728979669804,13.1293,155.38,155.33,9.91]
[1728979670408,13.1293,155.38,155.35,3.2198]
[1728979670811,9.91,155.38,155.35,3.2198]
[1728979671112,9.91,155.38,155.36,3.2196]
[1728979672705,9.91,155.39,155.37,3.2194]
[1728979673003,3.219,155.4,155.37,3.2194]
[1728979675807,2.6352,155.45,155.37,9.91]
[1728979676008,3.2184,155.43,155.37,9.91]
[1728979676302,13.1284,155.43,155.36,4.46]
[1728979676506,13.1284,155.43,155.39,3.219]
[1728979676706,3.2186,155.42,155.39,3.219]
[1728979676920,9.91,155.41,155.39,3.219]
[1728979680014,13.1287,155.41,155.39,3.219]
[1728979680414,9.91,155.41,155.37,3.2194]
[1728979680714,13.1288,155.41,155.36,14.37]
[1728979682016,13.1288,155.41,155.37,3.2194]
[1728979682316,13.1288,155.41,155.36,14.37]
[1728979683210,13.1288,155.41,155.37,9.91]
[1728979683410,13.1288,155.41,155.38,3.2192]
[1728979690218,3.2184,155.43,155.4,3.2188]
[1728979690421,14.37,155.44,155.38,9.91]
[1728979690920,3.2185,155.42,155.39,3.219]
[1728979691121,14.37,155.44,155.38,9.91]
[1728979691911,0.12502,155.57,155.39,9.91]
[1728979692112,9.91,155.44,155.39,9.91]
[1728979693218,13.1282,155.44,155.4,3.2188]
[1728979696216,9.91,155.43,155.39,3.2191]
[1728979696920,13.1284,155.43,155.39,3.2191]
[1728979697722,13.1284,155.43,155.4,3.2189]
[1728979700915,4.46,155.46,155.39,9.91]
[1728979701217,9.91,155.46,155.41,9.91]
[1728979701721,3.218,155.45,155.42,3.2184]
[1728979702419,1.3531,155.49,155.43,9.91]
[1728979702616,14.37,155.49,155.43,9.91]
[1728979703123,3.2175,155.47,155.44,3.2179]
[1728979705023,3.2175,155.47,155.44,13.1279]
[1728979706018,9.91,155.48,155.44,13.1279]
[1728979706223,13.1274,155.48,155.45,3.2178]
[1728979706417,9.91,155.48,155.44,9.91]
[1728979706811,3.2175,155.47,155.44,13.128]
[1728979710523,3.2175,155.47,155.44,3.218]
[1728979714027,3.2174,155.48,155.45,3.2177]
[1728979714224,1.3157,155.53,155.46,9.91]
[1728979714432,0.97888091,155.5,155.46,9.91]
[1728979714729,3.2169,155.5,155.47,3.2174]
[1728979714929,14.49502,155.51,155.46,9.91]
[1728979715128,13.1271,155.49,155.46,3.2176]
[1728979716127,4.58502,155.51,155.46,9.91]
[1728979716128,0.12502,155.51,155.46,9.91]
[1728979716325,10.03502,155.51,155.46,9.91]
[1728979716621,10.03502,155.51,155.47,9.91]
[1728979716825,13.25182,155.51,155.48,3.2171]
[1728979718219,3.34182,155.51,155.48,13.1271]
[1728979719525,3.34182,155.51,155.48,13.1272]
[1728979721232,0.12502,155.51,155.48,13.1272]
[1728979721433,3.2169,155.5,155.48,13.1272]
[1728979727733,3.2169,155.5,155.48,9.91]
[1728979732939,3.34162,155.51,155.48,13.1271]
[1728979735737,0.12502,155.51,155.48,9.91]
[1728979735937,0.12502,155.51,155.48,13.1272]
[1728979736335,3.34182,155.51,155.48,13.1272]
[1728979737945,0.12502,155.51,155.48,13.1272]
[1728979738139,3.2169,155.5,155.48,13.1272]
[1728979738438,0.12502,155.51,155.48,13.1271]
[1728979738639,3.34182,155.51,155.48,13.1271]
[1728979742142,3.34182,155.51,155.49,3.217]
[1728979755757,3.217,155.5,155.48,9.91]
[1728979756053,0.12502,155.51,155.44,4.46]
[1728979756257,3.2169,155.5,155.47,3.2174]
[1728979756755,0.12502,155.51,155.47,3.2174]
[1728979757957,9.91,155.48,155.41,7.1441658]
[1728979758153,9.91,155.48,155.43,14.35]
[1728979758854,3.2176,155.47,155.43,17.5681]
[1728979760153,3.2176,155.47,155.44,9.91]
[1728979760355,3.2172,155.49,155.46,9.91]